Workbook

Sheet Income statement
A2: Condensed Income Statement
A3: Amounts in NOK million | B3: Q1 2024 | C3: Q2 2024 | D3: YTD Q2 2024 | E3: Q3 2024 | F3: YTD Q3 2024 | G3: Q4 2024 | H3: YTD Q4 2024 | I3: Q1 2025
A4: Operating revenues | B4: 16797 | C4: 16853 | D4: 33650 | E4: 17209 | F4: 50859 | G4: 18395 | H4: 69254 | I4: 17176
A5: Operating expenses | B5: -14564 | C5: -14433 | D5: -28997 | E5: -14546 | F5: -43543 | G5: -15916 | H5: -59459 | I5: -14762
A6: Depreciation | B6: -635 | C6: -645 | D6: -1280 | E6: -665 | F6: -1945 | G6: -708 | H6: -2653 | I6: -656
A7: EBIT (adj.) | B7: 1598 | C7: 1775 | D7: 3373 | E7: 1998 | F7: 5371 | G7: 1771 | H7: 7142 | I7: 1758
A8: Other income and expenses | B8: -30 | C8: 366 | D8: 336 | E8: -740 | F8: -404 | G8: -180 | H8: -584 | I8: -8
A9: Operating profit | B9: 1568 | C9: 2141 | D9: 3709 | E9: 1258 | F9: 4967 | G9: 1591 | H9: 6558 | I9: 1750
A10: Profit from associates and joint ventures | B10: 415 | C10: 529 | D10: 944 | E10: 550 | F10: 1494 | G10: 371 | H10: 1865 | I10: 651
A11: Interest, net | B11: -252 | C11: -265 | D11: -517 | E11: -270 | F11: -787 | G11: -207 | H11: -994 | I11: -205
A12: Other financial items, net | B12: -40 | C12: -25 | D12: -65 | E12: -33 | F12: -98 | G12: -32 | H12: -130 | I12: -35
A13: Profit before taxes | B13: 1691 | C13: 2380 | D13: 4071 | E13: 1505 | F13: 5576 | G13: 1723 | H13: 7299 | I13: 2161
A14: Taxes | B14: -277 | C14: -350 | D14: -627 | E14: -293 | F14: -920 | G14: -384 | H14: -1304 | I14: -405
A15: Profit for the period for continuing operations | B15: 1414 | C15: 2030 | D15: 3444 | E15: 1212 | F15: 4656 | G15: 1339 | H15: 5995 | I15: 1756
A16: Discontinued operations | B16: 100 | C16: 118 | D16: 218 | E16: 74 | F16: 292 | G16: 112 | H16: 404 | I16: 151
A17: Profit for the period | B17: 1514 | C17: 2148 | D17: 3662 | E17: 1286 | F17: 4948 | G17: 1451 | H17: 6399 | I17: 1907
A18: Profit attributable to non-controlling interests | B18: 45 | C18: 106 | D18: 151 | E18: 100 | F18: 251 | G18: 91 | H18: 342 | I18: 114
A19: Profit attributable to owners of the parent | B19: 1469 | C19: 2042 | D19: 3511 | E19: 1186 | F19: 4697 | G19: 1360 | H19: 6057 | I19: 1793
A22: Operating revenues
A23: Amounts in NOK million | B23: =+B3 -> Q1 2024 | C23: Q2 2024 | D23: YTD Q2 2024 | E23: Q3 2024 | F23: =+F3 -> YTD Q3 2024 | G23: Q4 2024 | H23: YTD Q4 2024 | I23: Q1 2025
A24: Orkla Foods | B24: 5100 | C24: 4963 | D24: 10063 | E24: 5026 | F24: 15089 | G24: 5505 | H24: 20594 | I24: 4995
A25: Orkla Snacks | B25: 2296 | C25: 2312 | D25: 4608 | E25: 2327 | F25: 6935 | G25: 2800 | H25: 9735 | I25: 2409
A26: Orkla Food Ingredients | B26: 4464 | C26: 4859 | D26: 9323 | E26: 5012 | F26: 14335 | G26: 5039 | H26: 19374 | I26: 4842
A27: Orkla Health | B27: 1934 | C27: 1768 | D27: 3702 | E27: 1903 | F27: 5605 | G27: 1738 | H27: 7343 | I27: 2031
A28: Orkla India | B28: 763 | C28: 776 | D28: 1539 | E28: 797 | F28: 2336 | G28: 770 | H28: 3106 | I28: 780
A29: The European Pizza Company | B29: 710 | C29: 763 | D29: 1473 | E29: 796 | F29: 2269 | G29: 770 | H29: 3039 | I29: 715
A30: Orkla Home & Personal Care | B30: 673 | C30: 637 | D30: 1310 | E30: 667 | F30: 1977 | G30: 709 | H30: 2686 | I30: 726
A31: Orkla House Care | B31: 440 | C31: 440 | D31: 880 | E31: 418 | F31: 1298 | G31: 348 | H31: 1646 | I31: 467
A32: Health and Sports Nutrition Group | B32: 334 | C32: 300 | D32: 634 | E32: 315 | F32: 949 | G32: 309 | H32: 1258 | I32: 341
A33: Pierre Robert Group | B33: 137 | C33: 121 | D33: 258 | E33: 131 | F33: 389 | G33: 146 | H33: 535 | I33: 0
A34: Lilleborg | B34: 151 | C34: 98 | D34: 249 | E34: 0 | F34: 249 | G34: 0 | H34: 249 | I34: 0
A35: Eliminations Consolidated Portfolio Companies | B35: -217 | C35: -199 | D35: -416 | E35: -193 | F35: -609 | G35: -188 | H35: -797 | I35: -251
A36: Consolidated Portfolio Companies | B36: 16785 | C36: 16838 | D36: 33623 | E36: 17199 | F36: 50822 | G36: 17946 | H36: 68768 | I36: 17055
A37: Orkla ASA & Business Services/Eliminations | B37: 11 | C37: 6 | D37: 17 | E37: 2 | F37: 19 | G37: 17 | H37: 36 | I37: 16
A38: Consolidated Portfolio Companies incl. Orkla ASA and Business Services | B38: 16796 | C38: 16844 | D38: 33640 | E38: 17201 | F38: 50841 | G38: 17963 | H38: 68804 | I38: 17071
A39: Orkla Real Estate | B39: 47 | C39: 46 | D39: 93 | E39: 45 | F39: 138 | G39: 474 | H39: 612 | I39: 152
A40: Eliminations | B40: -46 | C40: -37 | D40: -83 | E40: -37 | F40: -120 | G40: -42 | H40: -162 | I40: -47
A41: Orkla Group | B41: 16797 | C41: 16853 | D41: 33650 | E41: 17209 | F41: 50859 | G41: 18395 | H41: 69254 | I41: 17176
A44: Operating profit - EBIT (adj.)
A45: Amounts in NOK million | B45: =+B23 -> Q1 2024 | C45: Q2 2024 | D45: YTD Q2 2024 | E45: Q3 2024 | F45: YTD Q3 2024 | G45: Q4 2024 | H45: YTD Q4 2024 | I45: Q1 2025
A46: Orkla Foods Europe | B46: 564 | C46: 612 | D46: 1176 | E46: 675 | F46: 1851 | G46: 681 | H46: 2532 | I46: 589
A47: Orkla Snacks | B47: 255 | C47: 255 | D47: 510 | E47: 339 | F47: 849 | G47: 424 | H47: 1273 | I47: 260
A48: Orkla Food Ingredients | B48: 236 | C48: 360 | D48: 596 | E48: 400 | F48: 996 | G48: 314 | H48: 1310 | I48: 280
A49: Orkla Health | B49: 305 | C49: 259 | D49: 564 | E49: 293 | F49: 857 | G49: 85 | H49: 942 | I49: 310
A50: Orkla India | B50: 92 | C50: 132 | D50: 224 | E50: 137 | F50: 361 | G50: 102 | H50: 463 | I50: 131
A51: The European Pizza Company | B51: 76 | C51: 90 | D51: 166 | E51: 100 | F51: 266 | G51: 70 | H51: 336 | I51: 77
A52: Orkla Home & Personal Care | B52: 76 | C52: 77 | D52: 153 | E52: 100 | F52: 253 | G52: 62 | H52: 315 | I52: 87
A53: Orkla House Care | B53: 63 | C53: 67 | D53: 130 | E53: 48 | F53: 178 | G53: 8 | H53: 186 | I53: 77
A54: Health and Sports Nutrition | B54: 15 | C54: 3 | D54: 18 | E54: 7 | F54: 25 | G54: 8 | H54: 33 | I54: 20
A55: Pierre Robert Group | B55: 3 | C55: -2 | D55: 1 | E55: -13 | F55: -12 | G55: -14 | H55: -26 | I55: 0
A56: Lilleborg | B56: 15 | C56: 11 | D56: 26 | E56: 0 | F56: 26 | G56: 0 | H56: 26 | I56: 0
A57: Eliminations Consoldated Portfolio Companies | B57: 0 | C57: 0 | D57: 0 | E57: 0 | F57: 0 | G57: -9 | H57: -9 | I57: 0
A58: Consolidated Portfolio Companies | B58: 1700 | C58: 1864 | D58: 3564 | E58: 2086 | F58: 5650 | G58: 1731 | H58: 7381 | I58: 1831
A59: Orkla ASA & Business Services | B59: -102 | C59: -94 | D59: -196 | E59: -100 | F59: -296 | G59: -103 | H59: -399 | I59: -103
A60: Consolidated Portfolio Companies incl. Orkla ASA and Business Services | B60: 1598 | C60: 1770 | D60: 3368 | E60: 1986 | F60: 5354 | G60: 1628 | H60: 6982 | I60: 1728
A61: Orkla Real Estate | B61: 0 | C61: 5 | D61: 5 | E61: 12 | F61: 17 | G61: 143 | H61: 160 | I61: 30
A62: Orkla Group | B62: 1598 | C62: 1775 | D62: 3373 | E62: 1998 | F62: 5371 | G62: 1771 | H62: 7142 | I62: 1758

Sheet Cash flow
B3: Cash Flow Statement Orkla Group
C5: 1.1-31.03 | D5: 1.1-31.03 | E5: 1.1-31.12
B6: Amounts in NOK million | C6: 2025 | D6: 2024 | E6: 2024
B8: EBIT (adj.) | C8: 1758 | D8: 1598 | E8: 7142
B9: Depreciation | C9: 656 | D9: 636 | E9: 2653
B10: Change in net working capital | C10: -250 | D10: -587 | E10: 690
B11: Net replacement expenditures | C11: -524 | D11: -410 | E11: -2009
B12: Cash flow effect from "Other income and expenses" and pensions | C12: -10 | D12: -42 | E12: -341
B13: Cash flow from operations | C13: =SUM(C8:C12) -> 1630 | D13: =SUM(D8:D12) -> 1195 | E13: =SUM(E8:E12) -> 8135
B14: Taxes paid | C14: -403 | D14: -274 | E14: -979
B15: Dividends received, financial items and other payments | C15: -248 | D15: 197 | E15: -186
B16: Cash flow from discontinued operations | C16: -287 | D16: 46 | E16: 531
B17: Cash flow before capital allocation | C17: =SUM(C13:C16) -> 692 | D17: =SUM(D13:D16) -> 1164 | E17: =SUM(E13:E16) -> 7501
B18: Dividends paid and net sale/purchase of Orkla shares | C18: -422 | D18: -37 | E18: -6039
B19: Expansion investments | C19: -61 | D19: -117 | E19: -502
B20: Purchase of companies (enterprise value) | C20: -206 | D20: -31 | E20: -583
B21: Sale of companies (enterprise value) | C21: 9 | D21: 2 | E21: 3222
B22: Net cash flow | C22: =SUM(C17:C21) -> 12 | D22: =SUM(D17:D21) -> 981 | E22: 3599
B23: Currency translations net interest-bearing liabilities | C23: 287 | D23: -541 | E23: -744
B24: Change in net interest-bearing liabilities | C24: =(C22+C23) -> 299 | D24: =(D22+D23) -> 440 | E24: =(E22+E23) -> 2855
B25: Net interest-bearing liabilities | C25: =+E25-C24 -> 15693 | D25: 18407 | E25: 15992

Sheet Balance sheet
B3: Group Balance Sheet
C4: 31.03 | D4: 31.12
B5: Amounts in NOK million | C5: 2025 | D5: 2024
B7: Assets:
B8: Property, plant and equipment | C8: 18847 | D8: 21123
B9: Intangible assets | C9: 35822 | D9: 36428
B10: Associates, joint ventures and other financial assets | C10: 10129 | D10: 9984
B11: Non-current assets | C11: =SUM(C8:C10) -> 64798 | D11: =SUM(D8:D10) -> 67535
B12: Discontinued operations, assets | C12: 3449 | D12: 0
B13: Inventories | C13: 10579 | D13: 10072
B14: Trade receivables | C14: 8869 | D14: 8809
B15: Other receivables and financial assets | C15: 1580 | D15: 1907
B16: Cash and cash equivalents | C16: 478 | D16: 1643
B17: Current assets | C17: =SUM(C12:C16) -> 24955 | D17: =SUM(D12:D16) -> 22431
B18: Total assets | C18: =C11+C17 -> 89753 | D18: =D11+D17 -> 89966
B20: Equity and debt:
B21: Paid-in equity | C21: 1966 | D21: 1970
B22: Retained equity | C22: 46236 | D22: 46074
B23: Non-controlling interests | C23: 3212 | D23: 3328
B24: Equity | C24: =SUM(C21:C23) -> 51414 | D24: =SUM(D21:D23) -> 51372
B25: Provisions and other non-current liabilities | C25: 5393 | D25: 5474
B26: Non-current interest-bearing liabilities | C26: 15909 | D26: 17084
B27: Current interest-bearing liabilities | C27: 2093 | D27: 1452
B28: Discontinued operations, debt | C28: 936 | D28: 0
B29: Trade payables | C29: 9264 | D29: 8985
B30: Other current liabilities | C30: 4744 | D30: 5599
B31: Equity and liabilities | C31: =SUM(C24:C30) -> 89753 | D31: =SUM(D24:D30) -> 89966
B33: Equity ratio: | C33: =C24/C31 -> 0.5728387909 | D33: =D24/D31 -> 0.571015717
